[Event "Titled Tuesday Blitz January 10 Early 2023"]
[White "Hirneise, Jens"]
[Black "Andreev, Konstantin"]
[WhiteFideId "24614734"]
[BlackFideId "24239305"]
[WhiteElo "2277"]
[BlackElo "2195"]
[Result "0-1"]
[Round "05"]
[TimeControl "180+2"]
[Date "2023.01.10"]
[WhiteClock "0:00:17"]
[BlackClock "0:00:07"]

1. e4 {[%clk 0:02:53]}  c5 {[%clk 0:02:59]} 2. Nf3 {[%clk 0:02:50]}  e6 {[%clk 0:02:58]} 3. b3 {[%clk 0:02:50]}  Nc6 {[%clk 0:02:54]} 4. Bb2 {[%clk 0:02:49]}  Nge7 {[%clk 0:02:48]} 5. d4 {[%clk 0:02:46]}  cxd4 {[%clk 0:02:45]} 6. Nxd4 {[%clk 0:02:46]}  Ng6 {[%clk 0:02:45]} 7. Be2 {[%clk 0:02:41]}  f6 {[%clk 0:02:43]} 8. g3 {[%clk 0:02:33]}  Bb4+ {[%clk 0:02:40]} 9. c3 {[%clk 0:02:24]}  Bc5 {[%clk 0:02:38]} 10. h4 {[%clk 0:02:21]}  O-O {[%clk 0:02:36]} 11. h5 {[%clk 0:02:13]}  Nge5 {[%clk 0:02:36]} 12. h6 {[%clk 0:02:11]}  g6 {[%clk 0:02:37]} 13. Nd2 {[%clk 0:02:05]}  Qb6 {[%clk 0:02:33]} 14. Nc4 {[%clk 0:01:58]}  Nxc4 {[%clk 0:02:33]} 15. Bxc4 {[%clk 0:01:59]}  Ne5 {[%clk 0:02:29]} 16. Be2 {[%clk 0:01:57]}  d5 {[%clk 0:02:24]} 17. exd5 {[%clk 0:01:50]}  exd5 {[%clk 0:02:25]} 18. O-O {[%clk 0:01:36]}  Bh3 {[%clk 0:02:14]} 19. Re1 {[%clk 0:01:34]}  Rae8 {[%clk 0:02:14]} 20. b4 {[%clk 0:01:22]}  Bd6 {[%clk 0:02:03]} 21. Bf3 {[%clk 0:01:19]}  Kh8 {[%clk 0:01:37]} 22. Bxd5 {[%clk 0:01:15]}  Bg4 {[%clk 0:01:33]} 23. Qc2 {[%clk 0:00:57]}  Rc8 {[%clk 0:01:15]} 24. Qe4 {[%clk 0:00:47]}  Rce8 {[%clk 0:01:03]} 25. Qg2 {[%clk 0:00:24]}  Nd3 {[%clk 0:00:54]} 26. Rxe8 {[%clk 0:00:24]}  Rxe8 {[%clk 0:00:55]} 27. f3 {[%clk 0:00:24]}  Bd7 {[%clk 0:00:51]} 28. Rd1 {[%clk 0:00:21]}  Nxb2 {[%clk 0:00:50]} 29. Qxb2 {[%clk 0:00:22]}  Bxg3 {[%clk 0:00:51]} 30. Qg2 {[%clk 0:00:20]}  Be5 {[%clk 0:00:50]} 31. Qf2 {[%clk 0:00:20]}  Qc7 {[%clk 0:00:45]} 32. Kg2 {[%clk 0:00:19]}  Qxc3 {[%clk 0:00:44]} 33. Ne2 {[%clk 0:00:18]}  Qc2 {[%clk 0:00:39]} 34. Rc1 {[%clk 0:00:17]}  Qf5 {[%clk 0:00:39]} 35. Kf1 {[%clk 0:00:16]}  Qg5 {[%clk 0:00:38]} 36. f4 {[%clk 0:00:15]}  Bh3+ {[%clk 0:00:34]} 37. Bg2 {[%clk 0:00:15]}  Bxg2+ {[%clk 0:00:26]} 38. Qxg2 {[%clk 0:00:16]}  Bxf4 {[%clk 0:00:25]} 39. Qxg5 {[%clk 0:00:15]}  Bxg5 {[%clk 0:00:26]} 40. Rc7 {[%clk 0:00:15]}  Bxh6 {[%clk 0:00:26]} 41. Rxb7 {[%clk 0:00:15]}  Be3 {[%clk 0:00:26]} 42. Kg2 {[%clk 0:00:13]}  h5 {[%clk 0:00:26]} 43. Kf3 {[%clk 0:00:13]}  g5 {[%clk 0:00:25]} 44. Rf7 {[%clk 0:00:13]}  g4+ {[%clk 0:00:24]} 45. Kg2 {[%clk 0:00:12]}  Re6 {[%clk 0:00:23]} 46. Kg3 {[%clk 0:00:09]}  Kg8 {[%clk 0:00:24]} 47. Rd7 {[%clk 0:00:09]}  Re5 {[%clk 0:00:22]} 48. a4 {[%clk 0:00:09]}  Re4 {[%clk 0:00:21]} 49. Rb7 {[%clk 0:00:06]}  f5 {[%clk 0:00:18]} 50. Kh4 {[%clk 0:00:05]}  f4 {[%clk 0:00:18]} 51. Kxh5 {[%clk 0:00:05]}  g3 {[%clk 0:00:18]} 52. Kg6 {[%clk 0:00:04]}  Kf8 {[%clk 0:00:17]} 53. Kf5 {[%clk 0:00:03]}  Re7 {[%clk 0:00:16]} 54. Rb8+ {[%clk 0:00:03]}  Kf7 {[%clk 0:00:15]} 55. Kg4 {[%clk 0:00:03]}  g2 {[%clk 0:00:13]} 56. Kf3 {[%clk 0:00:03]}  g1=Q {[%clk 0:00:13]} 57. Nxg1 {[%clk 0:00:04]}  Bxg1 {[%clk 0:00:14]} 58. Rh8 {[%clk 0:00:04]}  Be3 {[%clk 0:00:14]} 59. Rh5 {[%clk 0:00:04]}  Kf6 {[%clk 0:00:14]} 60. Ra5 {[%clk 0:00:04]}  Rb7 {[%clk 0:00:12]} 61. b5 {[%clk 0:00:04]}  Ke6 {[%clk 0:00:13]} 62. Ra6+ {[%clk 0:00:03]}  Kd5 {[%clk 0:00:13]} 63. Rc6 {[%clk 0:00:03]}  Rb6 {[%clk 0:00:12]} 64. Rc8 {[%clk 0:00:04]}  a6 {[%clk 0:00:11]} 65. Rd8+ {[%clk 0:00:04]}  Kc4 {[%clk 0:00:11]} 66. bxa6 {[%clk 0:00:04]}  Rxa6 {[%clk 0:00:12]} 67. Rd1 {[%clk 0:00:04]}  Rxa4 {[%clk 0:00:11]} 68. Rd8 {[%clk 0:00:04]}  Ra1 {[%clk 0:00:10]} 69. Rc8+ {[%clk 0:00:05]}  Kd5 {[%clk 0:00:10]} 70. Rd8+ {[%clk 0:00:06]}  Ke6 {[%clk 0:00:07]} 71. Re8+ {[%clk 0:00:07]}  Kf7 {[%clk 0:00:07]} 72. Rb8 {[%clk 0:00:07]}  Rf1+ {[%clk 0:00:07]} 73. Ke4 {[%clk 0:00:07]}  Kg6 {[%clk 0:00:07]} 74. Rb5 {[%clk 0:00:07]}  Bd2 {[%clk 0:00:04]} 75. Rb3 {[%clk 0:00:07]}  Be3 {[%clk 0:00:05]} 76. Rb2 {[%clk 0:00:07]}  Kg5 {[%clk 0:00:04]} 77. Rg2+ {[%clk 0:00:06]}  Kh4 {[%clk 0:00:05]} 78. Rg8 {[%clk 0:00:07]}  Kh3 {[%clk 0:00:04]} 79. Rg7 {[%clk 0:00:07]}  Kh2 {[%clk 0:00:04]} 80. Rg8 {[%clk 0:00:07]}  Rf2 {[%clk 0:00:04]} 81. Rg7 {[%clk 0:00:07]}  Rg2 {[%clk 0:00:04]} 82. Rh7+ {[%clk 0:00:08]}  Kg1 {[%clk 0:00:04]} 83. Kf3 {[%clk 0:00:08]}  Rg3+ {[%clk 0:00:04]} 84. Ke2 {[%clk 0:00:07]}  Kg2 {[%clk 0:00:04]} 85. Rf7 {[%clk 0:00:07]}  Rg4 {[%clk 0:00:01]} 86. Rf8 {[%clk 0:00:07]}  Rg5 {[%clk 0:00:01]} 87. Rf7 {[%clk 0:00:07]}  Re5 {[%clk 0:00:01]} 88. Rg7+ {[%clk 0:00:08]}  Kh3 {[%clk 0:00:02]} 89. Rf7 {[%clk 0:00:09]}  Rg5 {[%clk 0:00:01]} 90. Kf3 {[%clk 0:00:10]}  Kh4 {[%clk 0:00:01]} 91. Ke2 {[%clk 0:00:11]}  Rh5 {[%clk 0:00:02]} 92. Kf3 {[%clk 0:00:12]}  Rg5 {[%clk 0:00:02]} 93. Rg7 {[%clk 0:00:12]}  Rh5 {[%clk 0:00:02]} 94. Rh7 {[%clk 0:00:13]}  Rxh7 {[%clk 0:00:01]} 95. Ke2 {[%clk 0:00:13]}  Rg7 {[%clk 0:00:02]} 96. Kf3 {[%clk 0:00:14]}  Rg4 {[%clk 0:00:03]} 97. Ke4 {[%clk 0:00:15]}  Rg3 {[%clk 0:00:03]} 98. Kd3 {[%clk 0:00:15]}  Kh3 {[%clk 0:00:04]} 99. Ke2 {[%clk 0:00:16]}  f3+ {[%clk 0:00:05]} 100. Kf1 {[%clk 0:00:17]}  Kh2 {[%clk 0:00:06]} 101. Ke1 {[%clk 0:00:17]}  Rg1# {[%clk 0:00:07]} 0-1


[Site "https://www.chess.com"]

[Event "Titled Tuesday Blitz January 10 Early 2023"]
[White "Degtiarev, Evgeny"]
[Black "Fiorito, Francisco"]
[WhiteFideId "4149610"]
[BlackFideId "180165"]
[WhiteElo "2385"]
[BlackElo "2305"]
[Result "0-1"]
[Round "05"]
[TimeControl "180+2"]
[Date "2023.01.10"]
[WhiteClock "0:00:01"]
[BlackClock "0:00:05"]

1. d4 {[%clk 0:02:57]}  Nf6 {[%clk 0:03:00]} 2. c4 {[%clk 0:02:55]}  g6 {[%clk 0:03:00]} 3. Nc3 {[%clk 0:02:55]}  d5 {[%clk 0:03:01]} 4. cxd5 {[%clk 0:02:56]}  Nxd5 {[%clk 0:03:02]} 5. e4 {[%clk 0:02:56]}  Nxc3 {[%clk 0:03:02]} 6. bxc3 {[%clk 0:02:57]}  Bg7 {[%clk 0:03:02]} 7. Qa4+ {[%clk 0:02:52]}  c6 {[%clk 0:03:01]} 8. Nf3 {[%clk 0:02:51]}  O-O {[%clk 0:03:01]} 9. Be3 {[%clk 0:02:51]}  c5 {[%clk 0:02:53]} 10. Rd1 {[%clk 0:02:49]}  Nc6 {[%clk 0:02:33]} 11. Bb5 {[%clk 0:02:38]}  cxd4 {[%clk 0:02:22]} 12. Bxc6 {[%clk 0:02:23]}  bxc6 {[%clk 0:02:20]} 13. cxd4 {[%clk 0:02:16]}  Bb7 {[%clk 0:01:52]} 14. O-O {[%clk 0:02:14]}  a5 {[%clk 0:01:23]} 15. Rfe1 {[%clk 0:01:55]}  Qb6 {[%clk 0:01:03]} 16. Rb1 {[%clk 0:01:50]}  Qa6 {[%clk 0:01:02]} 17. Qa3 {[%clk 0:01:42]}  Rfe8 {[%clk 0:00:34]} 18. Rec1 {[%clk 0:01:42]}  Bc8 {[%clk 0:00:16]} 19. Nd2 {[%clk 0:01:35]}  Be6 {[%clk 0:00:15]} 20. Rc5 {[%clk 0:01:32]}  Red8 {[%clk 0:00:14]} 21. e5 {[%clk 0:01:28]}  Bd5 {[%clk 0:00:13]} 22. Rbc1 {[%clk 0:01:25]}  e6 {[%clk 0:00:14]} 23. Nc4 {[%clk 0:00:52]}  a4 {[%clk 0:00:09]} 24. Nd6 {[%clk 0:00:49]}  Bf8 {[%clk 0:00:08]} 25. Bf4 {[%clk 0:00:45]}  Qe2 {[%clk 0:00:08]} 26. R5c2 {[%clk 0:00:40]}  Qg4 {[%clk 0:00:08]} 27. Bg3 {[%clk 0:00:36]}  h5 {[%clk 0:00:07]} 28. Qe3 {[%clk 0:00:28]}  h4 {[%clk 0:00:06]} 29. f3 {[%clk 0:00:26]}  Qh5 {[%clk 0:00:06]} 30. Bf4 {[%clk 0:00:22]}  Be7 {[%clk 0:00:06]} 31. h3 {[%clk 0:00:20]}  g5 {[%clk 0:00:06]} 32. Bh2 {[%clk 0:00:20]}  Qg6 {[%clk 0:00:07]} 33. Rd2 {[%clk 0:00:18]}  Rdb8 {[%clk 0:00:07]} 34. Re1 {[%clk 0:00:16]}  Rb1 {[%clk 0:00:07]} 35. Qf2 {[%clk 0:00:14]}  Rab8 {[%clk 0:00:07]} 36. Rdd1 {[%clk 0:00:13]}  R8b2 {[%clk 0:00:05]} 37. Rd2 {[%clk 0:00:12]}  Rxe1+ {[%clk 0:00:03]} 38. Qxe1 {[%clk 0:00:12]}  Rb1 {[%clk 0:00:04]} 39. Rd1 {[%clk 0:00:11]}  Rb2 {[%clk 0:00:05]} 40. Rd2 {[%clk 0:00:09]}  Rc2 {[%clk 0:00:05]} 41. Rxc2 {[%clk 0:00:08]}  Qxc2 {[%clk 0:00:06]} 42. Ne4 {[%clk 0:00:06]}  Qxa2 {[%clk 0:00:06]} 43. Nf2 {[%clk 0:00:05]}  Qc2 {[%clk 0:00:05]} 44. Ne4 {[%clk 0:00:03]}  Qd3 {[%clk 0:00:05]} 45. Qa1 {[%clk 0:00:01]}  a3 {[%clk 0:00:05]} 0-1


[Site "https://www.chess.com"]

[Event "Titled Tuesday Blitz January 10 Early 2023"]
[White "Al-Tarboush, Ward"]
[Black "Mohammed, Dilshad"]
[WhiteFideId "7601450"]
[BlackFideId "5050421"]
[WhiteElo "2256"]
[BlackElo "2103"]
[Result "1-0"]
[Round "05"]
[TimeControl "180+2"]
[Date "2023.01.10"]
[WhiteClock "0:02:02"]
[BlackClock "0:00:23"]

1. e4 {[%clk 0:02:56]}  e5 {[%clk 0:01:49]} 2. Nf3 {[%clk 0:02:55]}  Nc6 {[%clk 0:01:44]} 3. Bb5 {[%clk 0:02:54]}  a6 {[%clk 0:01:44]} 4. Ba4 {[%clk 0:02:55]}  Nf6 {[%clk 0:01:39]} 5. O-O {[%clk 0:02:54]}  Be7 {[%clk 0:01:38]} 6. d3 {[%clk 0:02:54]}  b5 {[%clk 0:01:34]} 7. Bb3 {[%clk 0:02:53]}  O-O {[%clk 0:01:31]} 8. Nc3 {[%clk 0:02:52]}  d6 {[%clk 0:01:31]} 9. a4 {[%clk 0:02:52]}  Rb8 {[%clk 0:01:25]} 10. axb5 {[%clk 0:02:50]}  axb5 {[%clk 0:01:26]} 11. h3 {[%clk 0:02:49]}  h6 {[%clk 0:01:14]} 12. Be3 {[%clk 0:02:47]}  Be6 {[%clk 0:01:01]} 13. Bxe6 {[%clk 0:02:41]}  fxe6 {[%clk 0:01:02]} 14. Qd2 {[%clk 0:02:42]}  Qd7 {[%clk 0:01:01]} 15. Ra6 {[%clk 0:02:36]}  b4 {[%clk 0:01:01]} 16. Ne2 {[%clk 0:02:35]}  b3 {[%clk 0:00:59]} 17. c3 {[%clk 0:02:33]}  Ra8 {[%clk 0:00:52]} 18. Rfa1 {[%clk 0:02:29]}  Rxa6 {[%clk 0:00:52]} 19. Rxa6 {[%clk 0:02:30]}  Nb8 {[%clk 0:00:51]} 20. Ra3 {[%clk 0:02:30]}  d5 {[%clk 0:00:45]} 21. Rxb3 {[%clk 0:02:28]}  dxe4 {[%clk 0:00:44]} 22. dxe4 {[%clk 0:02:24]}  Nxe4 {[%clk 0:00:43]} 23. Qc2 {[%clk 0:02:23]}  Nc5 {[%clk 0:00:32]} 24. Rb4 {[%clk 0:02:11]}  e4 {[%clk 0:00:31]} 25. Ne5 {[%clk 0:02:06]}  Qd5 {[%clk 0:00:30]} 26. Ng6 {[%clk 0:02:03]}  Bd6 {[%clk 0:00:22]} 27. Nxf8 {[%clk 0:02:02]}  Bxf8 {[%clk 0:00:23]} 28. Rxb8 {[%clk 0:02:02]} 1-0


[Site "https://www.chess.com"]

[Event "Titled Tuesday Blitz January 10 Early 2023"]
[White "Turzo, Attila"]
[Black "Ovezdurdyyeva, Jemal"]
[WhiteFideId "704954"]
[BlackFideId "14001888"]
[WhiteElo "2279"]
[BlackElo "2078"]
[Result "1-0"]
[Round "05"]
[TimeControl "180+2"]
[Date "2023.01.10"]
[WhiteClock "0:01:58"]
[BlackClock "0:02:04"]

1. d4 {[%clk 0:03:00]}  Nf6 {[%clk 0:02:59]} 2. Bf4 {[%clk 0:03:00]}  e6 {[%clk 0:02:52]} 3. Nf3 {[%clk 0:02:58]}  d5 {[%clk 0:02:51]} 4. e3 {[%clk 0:02:58]}  Bd6 {[%clk 0:02:50]} 5. Bg3 {[%clk 0:02:58]}  O-O {[%clk 0:02:50]} 6. Nbd2 {[%clk 0:02:58]}  c5 {[%clk 0:02:50]} 7. Bd3 {[%clk 0:02:54]}  Nc6 {[%clk 0:02:47]} 8. c3 {[%clk 0:02:51]}  Re8 {[%clk 0:02:42]} 9. Ne5 {[%clk 0:02:49]}  Qc7 {[%clk 0:02:40]} 10. f4 {[%clk 0:02:45]}  Nd7 {[%clk 0:02:40]} 11. Bxh7+ {[%clk 0:02:41]}  Kxh7 {[%clk 0:02:17]} 12. Qh5+ {[%clk 0:02:40]}  Kg8 {[%clk 0:02:17]} 13. Qxf7+ {[%clk 0:02:38]}  Kh7 {[%clk 0:02:15]} 14. Qg6+ {[%clk 0:02:14]}  Kg8 {[%clk 0:02:12]} 15. Qxe8+ {[%clk 0:02:14]}  Nf8 {[%clk 0:02:10]} 16. Ndf3 {[%clk 0:02:09]}  cxd4 {[%clk 0:02:08]} 17. exd4 {[%clk 0:02:08]}  g6 {[%clk 0:02:03]} 18. Nxg6 {[%clk 0:02:01]}  Bd7 {[%clk 0:02:04]} 19. Qxa8 {[%clk 0:01:58]} 1-0


[Site "https://www.chess.com"]

[Event "Titled Tuesday Blitz January 10 Early 2023"]
[White "Fayzullaev, Akmal"]
[Black "Vasques, Antonio Pedro Freixial"]
[WhiteFideId "14200554"]
[BlackFideId "1908332"]
[WhiteElo "2391"]
[BlackElo "2214"]
[Result "1-0"]
[Round "05"]
[TimeControl "180+2"]
[Date "2023.01.10"]
[WhiteClock "0:00:03"]
[BlackClock "0:00:14"]

1. e4 {[%clk 0:02:59]}  c5 {[%clk 0:02:56]} 2. Nf3 {[%clk 0:02:58]}  Nc6 {[%clk 0:02:46]} 3. d4 {[%clk 0:02:56]}  cxd4 {[%clk 0:02:46]} 4. Nxd4 {[%clk 0:02:56]}  e6 {[%clk 0:02:45]} 5. Bf4 {[%clk 0:02:56]}  a6 {[%clk 0:02:36]} 6. Nxc6 {[%clk 0:02:39]}  bxc6 {[%clk 0:02:32]} 7. c4 {[%clk 0:02:35]}  d6 {[%clk 0:02:27]} 8. Nc3 {[%clk 0:02:34]}  e5 {[%clk 0:02:26]} 9. Be3 {[%clk 0:02:33]}  Rb8 {[%clk 0:02:23]} 10. Qc2 {[%clk 0:02:32]}  Nf6 {[%clk 0:02:22]} 11. Be2 {[%clk 0:02:30]}  Be7 {[%clk 0:02:22]} 12. O-O {[%clk 0:02:29]}  O-O {[%clk 0:02:23]} 13. b3 {[%clk 0:02:27]}  Be6 {[%clk 0:02:19]} 14. Rfd1 {[%clk 0:02:26]}  Qa5 {[%clk 0:02:18]} 15. Bf3 {[%clk 0:02:09]}  Rfe8 {[%clk 0:02:13]} 16. Rd2 {[%clk 0:02:02]}  h6 {[%clk 0:02:11]} 17. Rad1 {[%clk 0:02:01]}  Nd7 {[%clk 0:02:09]} 18. Na4 {[%clk 0:02:00]}  Bg5 {[%clk 0:01:51]} 19. Bxg5 {[%clk 0:01:39]}  hxg5 {[%clk 0:01:50]} 20. Rxd6 {[%clk 0:01:40]}  g4 {[%clk 0:01:51]} 21. Be2 {[%clk 0:01:36]}  Nc5 {[%clk 0:01:49]} 22. Nxc5 {[%clk 0:01:29]}  Qxc5 {[%clk 0:01:50]} 23. Qd2 {[%clk 0:01:26]}  a5 {[%clk 0:01:44]} 24. Qg5 {[%clk 0:01:22]}  a4 {[%clk 0:01:42]} 25. Bxg4 {[%clk 0:01:00]}  Bxg4 {[%clk 0:01:35]} 26. Qxg4 {[%clk 0:00:58]}  axb3 {[%clk 0:01:36]} 27. axb3 {[%clk 0:00:57]}  Rxb3 {[%clk 0:01:37]} 28. Qd7 {[%clk 0:00:55]}  Rf8 {[%clk 0:01:24]} 29. Rxc6 {[%clk 0:00:46]}  Qb4 {[%clk 0:01:24]} 30. Rc8 {[%clk 0:00:38]}  g6 {[%clk 0:01:15]} 31. Rxf8+ {[%clk 0:00:36]}  Kxf8 {[%clk 0:01:16]} 32. Qc7 {[%clk 0:00:32]}  Rb1 {[%clk 0:01:13]} 33. Rf1 {[%clk 0:00:11]}  Rxf1+ {[%clk 0:01:11]} 34. Kxf1 {[%clk 0:00:12]}  Qb1+ {[%clk 0:01:12]} 35. Ke2 {[%clk 0:00:11]}  Qxe4+ {[%clk 0:01:13]} 36. Kd2 {[%clk 0:00:12]}  Qd4+ {[%clk 0:01:13]} 37. Ke2 {[%clk 0:00:10]}  e4 {[%clk 0:01:10]} 38. Qc8+ {[%clk 0:00:10]}  Kg7 {[%clk 0:01:11]} 39. Qc6 {[%clk 0:00:10]}  Qd3+ {[%clk 0:01:11]} 40. Ke1 {[%clk 0:00:10]}  Qb1+ {[%clk 0:01:07]} 41. Ke2 {[%clk 0:00:10]}  Qd3+ {[%clk 0:01:07]} 42. Ke1 {[%clk 0:00:09]}  Qc3+ {[%clk 0:01:08]} 43. Ke2 {[%clk 0:00:09]}  Qc2+ {[%clk 0:01:03]} 44. Ke3 {[%clk 0:00:08]}  Qd3+ {[%clk 0:01:03]} 45. Kf4 {[%clk 0:00:08]}  Qd2+ {[%clk 0:00:58]} 46. Kxe4 {[%clk 0:00:06]}  Qxf2 {[%clk 0:00:58]} 47. Ke5 {[%clk 0:00:06]}  Qb2+ {[%clk 0:00:25]} 48. Kd6 {[%clk 0:00:04]}  Qd4+ {[%clk 0:00:18]} 49. Kc7 {[%clk 0:00:04]}  Qa7+ {[%clk 0:00:14]} 50. Kd8 {[%clk 0:00:02]}  Qb8+ {[%clk 0:00:13]} 51. Ke7 {[%clk 0:00:02]}  Qxh2 {[%clk 0:00:12]} 52. Qe4 {[%clk 0:00:01]}  Qc7+ {[%clk 0:00:12]} 53. Ke8 {[%clk 0:00:01]}  Qc8+ {[%clk 0:00:11]} 54. Ke7 {[%clk 0:00:02]}  Qc5+ {[%clk 0:00:12]} 55. Kd7 {[%clk 0:00:01]}  f5 {[%clk 0:00:12]} 56. Qe7+ {[%clk 0:00:01]}  Qxe7+ {[%clk 0:00:13]} 57. Kxe7 {[%clk 0:00:02]}  g5 {[%clk 0:00:13]} 58. c5 {[%clk 0:00:02]}  f4 {[%clk 0:00:14]} 59. c6 {[%clk 0:00:02]}  g4 {[%clk 0:00:14]} 60. c7 {[%clk 0:00:03]}  f3 {[%clk 0:00:15]} 61. c8=Q {[%clk 0:00:03]}  fxg2 {[%clk 0:00:14]} 62. Qxg4+ {[%clk 0:00:03]}  Kh7 {[%clk 0:00:14]} 63. Kf6 {[%clk 0:00:03]} 1-0


[Site "https://www.chess.com"]

[Event "Titled Tuesday Blitz January 10 Early 2023"]
[White "Kvaloy, Aksel Bu"]
[Black "Wilson, Elvin"]
[WhiteFideId "1528815"]
[BlackFideId "2014874"]
[WhiteElo "2321"]
[BlackElo "2183"]
[Result "1-0"]
[Round "05"]
[TimeControl "180+2"]
[Date "2023.01.10"]
[WhiteClock "0:00:45"]
[BlackClock "0:00:05"]

1. d4 {[%clk 0:03:00]}  Nf6 {[%clk 0:02:59]} 2. c4 {[%clk 0:03:00]}  e6 {[%clk 0:02:59]} 3. g3 {[%clk 0:03:00]}  d5 {[%clk 0:02:54]} 4. Nf3 {[%clk 0:02:58]}  Bb4+ {[%clk 0:02:53]} 5. Bd2 {[%clk 0:02:58]}  Be7 {[%clk 0:02:46]} 6. Bg2 {[%clk 0:02:57]}  O-O {[%clk 0:02:46]} 7. O-O {[%clk 0:02:53]}  c6 {[%clk 0:02:47]} 8. Qc2 {[%clk 0:02:51]}  Nbd7 {[%clk 0:02:46]} 9. Bf4 {[%clk 0:02:50]}  Nh5 {[%clk 0:02:41]} 10. Bc1 {[%clk 0:02:41]}  Nhf6 {[%clk 0:02:33]} 11. Nbd2 {[%clk 0:02:37]}  b6 {[%clk 0:02:29]} 12. e4 {[%clk 0:02:34]}  Bb7 {[%clk 0:02:28]} 13. e5 {[%clk 0:02:33]}  Ne8 {[%clk 0:02:28]} 14. b3 {[%clk 0:02:33]}  Rc8 {[%clk 0:02:26]} 15. Bb2 {[%clk 0:02:31]}  c5 {[%clk 0:02:07]} 16. Rfd1 {[%clk 0:02:27]}  Nc7 {[%clk 0:02:06]} 17. Rac1 {[%clk 0:02:26]}  dxc4 {[%clk 0:01:54]} 18. Nxc4 {[%clk 0:02:24]}  Nd5 {[%clk 0:01:52]} 19. Qb1 {[%clk 0:02:17]}  Qc7 {[%clk 0:01:47]} 20. Nd6 {[%clk 0:02:10]}  Bxd6 {[%clk 0:01:33]} 21. exd6 {[%clk 0:02:11]}  Qxd6 {[%clk 0:01:34]} 22. dxc5 {[%clk 0:02:10]}  bxc5 {[%clk 0:01:16]} 23. Ng5 {[%clk 0:02:09]}  f5 {[%clk 0:01:07]} 24. Qa1 {[%clk 0:02:01]}  N7f6 {[%clk 0:00:58]} 25. Be5 {[%clk 0:01:58]}  Qe7 {[%clk 0:00:55]} 26. Qb2 {[%clk 0:01:42]}  h6 {[%clk 0:00:51]} 27. Nf3 {[%clk 0:01:42]}  Rfd8 {[%clk 0:00:51]} 28. Nd2 {[%clk 0:01:39]}  Nb4 {[%clk 0:00:49]} 29. Bxf6 {[%clk 0:01:33]}  gxf6 {[%clk 0:00:37]} 30. Bxb7 {[%clk 0:01:32]}  Nd3 {[%clk 0:00:37]} 31. Qc3 {[%clk 0:01:20]}  Nxc1 {[%clk 0:00:35]} 32. Rxc1 {[%clk 0:01:09]}  Qxb7 {[%clk 0:00:33]} 33. Qxf6 {[%clk 0:00:54]}  Qf7 {[%clk 0:00:26]} 34. Qxh6 {[%clk 0:00:52]}  Rc6 {[%clk 0:00:15]} 35. Nf3 {[%clk 0:00:49]}  Qg7 {[%clk 0:00:15]} 36. Qe3 {[%clk 0:00:47]}  Qf7 {[%clk 0:00:12]} 37. Qg5+ {[%clk 0:00:46]}  Kh7 {[%clk 0:00:11]} 38. Qxd8 {[%clk 0:00:46]}  f4 {[%clk 0:00:11]} 39. Ne5 {[%clk 0:00:45]}  Qc7 {[%clk 0:00:08]} 40. Nxc6 {[%clk 0:00:44]}  Qxc6 {[%clk 0:00:05]} 41. Qh4+ {[%clk 0:00:44]}  Kg6 {[%clk 0:00:05]} 42. Qg4+ {[%clk 0:00:45]} 1-0


[Site "https://www.chess.com"]

[Event "Titled Tuesday Blitz January 10 Early 2023"]
[White "Perez Rodriguez, Jennifer"]
[Black "Janaszak, Dawid"]
[WhiteFideId "3507831"]
[BlackFideId "1119206"]
[WhiteElo "2242"]
[BlackElo "2316"]
[Result "0-1"]
[Round "05"]
[TimeControl "180+2"]
[Date "2023.01.10"]
[WhiteClock "0:00:14"]
[BlackClock "0:00:23"]

1. e4 {[%clk 0:02:57]}  c5 {[%clk 0:02:59]} 2. c3 {[%clk 0:02:56]}  e5 {[%clk 0:02:58]} 3. d4 {[%clk 0:02:56]}  cxd4 {[%clk 0:02:59]} 4. cxd4 {[%clk 0:02:54]}  exd4 {[%clk 0:02:59]} 5. Nf3 {[%clk 0:02:54]}  Nc6 {[%clk 0:02:59]} 6. Bc4 {[%clk 0:02:54]}  Nf6 {[%clk 0:02:59]} 7. Nxd4 {[%clk 0:02:48]}  Bb4+ {[%clk 0:02:51]} 8. Nc3 {[%clk 0:02:46]}  O-O {[%clk 0:02:49]} 9. Nxc6 {[%clk 0:02:44]}  bxc6 {[%clk 0:02:42]} 10. Bd3 {[%clk 0:02:31]}  d5 {[%clk 0:02:37]} 11. exd5 {[%clk 0:02:25]}  Nxd5 {[%clk 0:02:37]} 12. O-O {[%clk 0:02:19]}  Qh4 {[%clk 0:02:20]} 13. Nxd5 {[%clk 0:02:06]}  cxd5 {[%clk 0:02:18]} 14. Qf3 {[%clk 0:02:00]}  Bg4 {[%clk 0:02:07]} 15. Qf4 {[%clk 0:01:52]}  Be7 {[%clk 0:01:46]} 16. h3 {[%clk 0:01:50]}  Be6 {[%clk 0:01:46]} 17. Qxh4 {[%clk 0:01:47]}  Bxh4 {[%clk 0:01:46]} 18. Be3 {[%clk 0:01:46]}  Bf6 {[%clk 0:01:45]} 19. Rab1 {[%clk 0:01:43]}  d4 {[%clk 0:01:45]} 20. Bd2 {[%clk 0:01:42]}  Bxa2 {[%clk 0:01:45]} 21. Ra1 {[%clk 0:01:42]}  Be6 {[%clk 0:01:41]} 22. Be4 {[%clk 0:01:19]}  Rab8 {[%clk 0:01:41]} 23. b4 {[%clk 0:01:15]}  a6 {[%clk 0:01:28]} 24. Rfc1 {[%clk 0:01:10]}  Rb6 {[%clk 0:01:22]} 25. Ra5 {[%clk 0:01:02]}  g6 {[%clk 0:01:16]} 26. Rca1 {[%clk 0:01:02]}  Bc4 {[%clk 0:01:11]} 27. Rc5 {[%clk 0:01:00]}  Bb5 {[%clk 0:01:08]} 28. Rac1 {[%clk 0:00:58]}  Re8 {[%clk 0:01:05]} 29. f3 {[%clk 0:00:53]}  Kg7 {[%clk 0:00:59]} 30. Rc7 {[%clk 0:00:51]}  Re7 {[%clk 0:00:55]} 31. Rxe7 {[%clk 0:00:49]}  Bxe7 {[%clk 0:00:56]} 32. Rc7 {[%clk 0:00:49]}  Bd6 {[%clk 0:00:51]} 33. Ra7 {[%clk 0:00:43]}  Bc4 {[%clk 0:00:46]} 34. Rd7 {[%clk 0:00:38]}  Bxb4 {[%clk 0:00:46]} 35. Bxb4 {[%clk 0:00:37]}  Rxb4 {[%clk 0:00:46]} 36. Rxd4 {[%clk 0:00:37]}  a5 {[%clk 0:00:46]} 37. Bd3 {[%clk 0:00:31]}  Be6 {[%clk 0:00:45]} 38. Rd8 {[%clk 0:00:27]}  a4 {[%clk 0:00:44]} 39. Ra8 {[%clk 0:00:27]}  Bb3 {[%clk 0:00:40]} 40. Be4 {[%clk 0:00:25]}  Rd4 {[%clk 0:00:39]} 41. Kf2 {[%clk 0:00:25]}  h5 {[%clk 0:00:39]} 42. h4 {[%clk 0:00:25]}  Rd2+ {[%clk 0:00:37]} 43. Kg3 {[%clk 0:00:24]}  Ra2 {[%clk 0:00:28]} 44. Rb8 {[%clk 0:00:18]}  Be6 {[%clk 0:00:26]} 45. Bc6 {[%clk 0:00:14]}  a3 {[%clk 0:00:25]} 46. Ra8 {[%clk 0:00:15]}  Rc2 {[%clk 0:00:23]} 47. Rxa3 {[%clk 0:00:14]}  Rxc6 {[%clk 0:00:23]} 0-1


[Site "https://www.chess.com"]